bitfinex/quotes_BTCUSD_20220205
["timestamp","ask_amount","ask_price","bid_price","bid_amount"]
[1644041341195,0.95104619,41592.0,41591.0,0.24]
[1644041341394,0.94803294,41592.0,41591.0,0.24]
[1644041341600,0.94804595,41592.0,41591.0,0.24]
[1644041341793,0.34933862,41592.0,41591.0,0.24]
[1644041341995,0.61803296,41592.0,41591.0,0.24]
[1644041342596,0.61849669,41592.0,41591.0,0.24]
[1644041343144,0.30113862,41592.0,41591.0,0.24]
[1644041343441,0.57011228,41592.0,41591.0,0.24]
[1644041343644,0.30113862,41592.0,41591.0,0.24]
[1644041343943,0.02651712,41595.0,41591.0,0.24]
[1644041344155,0.02651712,41595.0,41591.0,0.51338377]
[1644041344343,0.16513738,41603.0,41594.0,0.34396447]
[1644041344545,0.00640486,41600.0,41599.0,0.05]
[1644041344842,0.00640486,41600.0,41595.0,0.0002061]
[1644041345041,0.00640486,41600.0,41597.0,0.21801172]
[1644041345241,0.00640486,41600.0,41597.0,0.21301172]
[1644041345443,0.00640486,41600.0,41597.0,0.21321782]
[1644041346242,0.00640486,41600.0,41599.0,0.060091]
[1644041347693,0.00640486,41600.0,41598.0,0.060088]
[1644041347895,0.00640486,41600.0,41597.0,0.0002061]
[1644041348093,0.00640486,41600.0,41595.0,0.1204001]
[1644041348893,0.00640486,41600.0,41595.0,0.0002061]
[1644041348894,0.05,41596.0,41595.0,0.0002061]
[1644041349091,0.05,41596.0,41594.0,0.01890987]
[1644041349297,0.05,41596.0,41595.0,0.00083547]
[1644041349492,0.6609571,41596.0,41595.0,0.00104157]
[1644041349695,0.381046,41596.0,41595.0,0.00104157]
[1644041350094,0.65886351,41596.0,41595.0,0.00104157]
[1644041350341,0.44115199,41596.0,41595.0,0.0002061]
[1644041350541,0.44115199,41596.0,41594.0,0.01890987]
[1644041350742,0.11010599,41596.0,41594.0,0.0002061]
[1644041350941,0.11010599,41596.0,41593.0,0.00083549]
[1644041351342,0.11010599,41596.0,41592.0,0.0002061]
[1644041351541,0.11010599,41596.0,41592.0,0.0008355]
[1644041351845,0.11010599,41596.0,41592.0,0.0010416]
[1644041352441,0.06010599,41596.0,41592.0,0.0010416]
[1644041352642,0.06010599,41596.0,41592.0,0.0002061]
[1644041352842,0.06010599,41596.0,41592.0,0.00083551]
[1644041352843,0.05,41593.0,41592.0,0.00083551]
[1644041353043,0.05,41595.0,41592.0,0.00104161]
[1644041353844,0.05,41595.0,41592.0,0.0002061]
[1644041354102,0.05,41595.0,41591.0,0.3003121]
[1644041354897,0.05,41595.0,41591.0,0.2402061]
[1644041355193,0.05,41595.0,41591.0,0.24]
[1644041355791,0.06010599,41596.0,41591.0,0.24]
[1644041355992,0.05,41593.0,41591.0,0.24]
[1644041356192,0.05,41593.0,41591.0,0.2402061]
[1644041357195,0.05,41596.0,41591.0,0.2402061]
[1644041357393,0.05,41596.0,41593.0,0.060094]
[1644041357848,0.05,41596.0,41594.0,0.117365]
[1644041358049,0.05,41599.0,41595.0,0.25238911]
[1644041358248,0.05,41599.0,41595.0,0.25259521]
[1644041358949,0.05,41599.0,41595.0,0.25343106]
[1644041359451,0.05,41599.0,41596.0,0.06009]
[1644041361453,0.05,41599.0,41595.0,0.00104194]
[1644041361697,0.05,41599.0,41595.0,0.00083584]
[1644041362098,0.05,41597.0,41595.0,0.00083584]
[1644041362297,0.05,41597.0,41594.0,0.0002061]
[1644041362500,0.05,41597.0,41595.0,0.00083585]
[1644041363497,0.05,41597.0,41594.0,0.0002061]
[1644041363697,0.05,41597.0,41594.0,0.00083586]
[1644041363898,0.05,41597.0,41594.0,0.00104196]
[1644041364496,0.05,41597.0,41594.0,0.06113996]
[1644041364697,0.05,41597.0,41594.0,0.0603041]
[1644041365342,0.05,41597.0,41594.0,0.0002061]
[1644041365642,0.05,41597.0,41593.0,0.06093587]
[1644041365841,0.05,41597.0,41593.0,0.0601]
[1644041366041,0.05,41597.0,41593.0,0.06093587]
[1644041366242,0.23190327,41599.0,41593.0,0.06093587]
[1644041366243,0.06010058,41598.0,41593.0,0.06093587]
[1644041366643,0.05,41596.0,41593.0,0.06114197]
[1644041367042,0.05,41596.0,41593.0,0.0603061]
[1644041367946,0.05,41596.0,41594.0,0.060098]
[1644041368144,0.05,41596.0,41594.0,0.0603041]
[1644041368643,0.04993466,41597.0,41594.0,0.1204011]
[1644041369703,0.04993466,41597.0,41594.0,0.120195]
[1644041369898,0.04993466,41597.0,41594.0,0.1204011]
[1644041370100,0.04993466,41597.0,41594.0,0.0002061]
[1644041370302,0.04993466,41597.0,41593.0,0.00083587]
[1644041370498,0.04993466,41597.0,41593.0,0.06114297]
[1644041370699,0.04993466,41597.0,41593.0,0.0603071]
[1644041370899,0.04993466,41597.0,41593.0,0.06093688]
[1644041371301,0.04993466,41597.0,41593.0,0.06114298]
[1644041371500,0.04993466,41597.0,41593.0,0.4463664]
[1644041371702,0.04993466,41597.0,41593.0,0.42048106]
[1644041371902,0.04993466,41597.0,41593.0,0.41964518]
[1644041372102,0.04993466,41597.0,41594.0,0.11736]
[1644041372303,0.04993466,41597.0,41594.0,0.1175661]
[1644041372502,0.04993466,41597.0,41594.0,0.1776651]
[1644041373345,0.04993466,41597.0,41594.0,0.0603051]
[1644041375748,0.04993466,41597.0,41594.0,0.0002061]
[1644041375951,0.04993466,41597.0,41593.0,0.06114297]
[1644041376151,0.2822827,41600.0,41593.0,0.00104197]
[1644041376352,0.2822827,41600.0,41593.0,0.06114297]
[1644041376353,0.04993466,41597.0,41593.0,0.06114297]
[1644041376598,0.04993466,41597.0,41593.0,0.0603071]
[1644041376793,0.04993466,41597.0,41593.0,0.06093688]
[1644041376994,0.2822827,41600.0,41593.0,0.06093688]
[1644041377394,0.06009957,41599.0,41594.0,0.060099]
[1644041377594,0.04993466,41597.0,41594.0,0.060099]
[1644041382349,0.04993466,41597.0,41595.0,0.117359]
[1644041382548,0.04993466,41597.0,41596.0,0.060093]
[1644041382749,0.04993466,41597.0,41596.0,0.177448]
[1644041383549,0.0498627,41597.0,41596.0,0.1775853]
[1644041383750,0.0498627,41599.0,41597.0,0.060093]
[1644041383949,0.0498627,41599.0,41598.0,0.30942433]
[1644041386796,0.0498627,41599.0,41598.0,0.24933133]
[1644041387398,0.0498627,41599.0,41597.0,0.060093]
[1644041388652,0.0498627,41599.0,41598.0,0.0001373]
[1644041394099,0.00640486,41600.0,41597.0,0.11964464]
[1644041395000,0.05,41598.0,41597.0,0.11964464]
[1644041395446,0.00640486,41600.0,41597.0,0.11964464]
[1644041396547,0.05,41599.0,41597.0,0.11964464]
[1644041402396,0.05,41599.0,41597.0,0.05954864]
[1644041404251,0.05,41599.0,41597.0,0.11964664]
[1644041404647,0.11010031,41599.0,41596.0,0.00083592]
[1644041405450,0.11010031,41599.0,41595.0,0.26162257]
[1644041405650,0.11010031,41599.0,41595.0,0.06093692]
[1644041406250,0.06010031,41599.0,41595.0,0.06093692]
[1644041406694,0.06010031,41599.0,41595.0,0.060101]
[1644041406695,0.05,41596.0,41595.0,0.060101]
[1644041406899,0.05,41596.0,41595.0,0.06093693]
[1644041407894,0.05,41596.0,41595.0,0.060101]
[1644041409199,0.05,41596.0,41593.0,0.00083595]
[1644041410198,0.05,41596.0,41592.0,0.0002061]
[1644041410447,0.05,41596.0,41592.0,0.11820696]
[1644041410650,0.05,41596.0,41592.0,0.11841306]
[1644041411551,0.05,41596.0,41593.0,0.33529046]
[1644041412352,0.05,41596.0,41593.0,0.060102]
[1644041415601,0.08185595,41594.0,41592.0,0.06114473]
[1644041415798,0.08185595,41594.0,41592.0,0.00104173]
[1644041416200,0.08185595,41594.0,41592.0,0.0002061]
[1644041416400,0.08185595,41594.0,41591.0,0.24]
[1644041417200,0.14196387,41594.0,41591.0,0.24]
[1644041417400,0.26945481,41592.0,41591.0,0.24]
[1644041418045,0.26945481,41592.0,41591.0,0.2402061]
[1644041419848,0.04993509,41594.0,41591.0,0.3003091]
[1644041420050,0.04993509,41594.0,41591.0,0.300103]
[1644041420249,0.04993509,41594.0,41592.0,0.060103]
[1644041420450,0.04993509,41594.0,41592.0,0.0603091]
[1644041421150,0.23057975,41593.0,41592.0,0.0603091]
[1644041421607,0.23057975,41593.0,41592.0,0.36857784]
[1644041422604,0.23057975,41593.0,41592.0,0.36846569]
[1644041423206,0.23057975,41593.0,41592.0,0.06019695]
[1644041425350,0.23057975,41593.0,41592.0,0.0002061]
[1644041425551,0.49998906,41593.0,41591.0,0.2402061]
[1644041425752,0.27955344,41592.0,41591.0,0.2402061]
[1644041431601,0.22854013,41592.0,41591.0,0.2365936]
[1644041432201,0.50364992,41593.0,41591.0,0.2365936]
[1644041432401,0.23057975,41593.0,41592.0,0.060103]
[1644041432602,0.23057975,41593.0,41592.0,0.0603091]
[1644041433450,0.55620309,41593.0,41592.0,0.0002061]
[1644041433650,0.5491787,41593.0,41591.0,0.2365936]
[1644041433850,0.27408296,41592.0,41591.0,0.2365936]
[1644041435953,0.75,41591.0,41587.0,0.01926582]
[1644041436153,0.04993509,41588.0,41587.0,0.01926582]
[1644041436353,0.42918109,41588.0,41586.0,0.02121785]
[1644041436611,0.48930713,41588.0,41586.0,0.02121785]
[1644041436805,0.331046,41587.0,41586.0,0.02121785]
[1644041437003,0.64231032,41587.0,41586.0,0.02121785]
[1644041437204,0.72172509,41587.0,41586.0,0.02121785]
[1644041438104,1.04708621,41587.0,41586.0,0.02121785]
[1644041438504,1.21220167,41587.0,41584.0,0.00083282]
[1644041438704,0.29511268,41585.0,41584.0,0.00083282]
[1644041438903,0.97567118,41585.0,41584.0,0.00083282]
[1644041439104,0.97567118,41585.0,41583.0,0.05]
[1644041439404,0.62315005,41584.0,41583.0,0.05]
[1644041440205,0.27286983,41584.0,41583.0,0.05]
[1644041440454,0.331067,41583.0,41581.0,0.02]
[1644041440650,0.28136523,41582.0,41581.0,0.02083251]
[1644041440852,0.33130032,41582.0,41581.0,0.02083251]
[1644041441649,0.33130032,41582.0,41581.0,0.02]
[1644041443852,0.33130032,41582.0,41581.0,0.01]
[1644041444104,0.33130032,41582.0,41581.0,0.25]
[1644041451610,0.27389653,41582.0,41581.0,0.25]
[1644041452204,0.04993509,41582.0,41581.0,0.25]
[1644041453513,0.38100209,41582.0,41581.0,0.25]
[1644041453709,0.69778595,41582.0,41581.0,0.25]
[1644041453909,0.74598595,41582.0,41581.0,0.25]
[1644041455351,0.74598595,41582.0,41581.0,0.245]
[1644041456057,0.74598595,41582.0,41580.0,0.00020392]
[1644041456058,1.0874752,41581.0,41580.0,0.00020392]
[1644041456255,1.1356752,41581.0,41579.0,0.00080747]
[1644041456552,0.331067,41580.0,41579.0,0.00080747]
[1644041456754,0.379267,41580.0,41579.0,0.00080747]
[1644041456952,0.479267,41580.0,41579.0,0.00080747]
[1644041457157,0.12028599,41579.0,41574.0,0.00020392]
[1644041457353,0.381067,41578.0,41577.0,0.00078098]
[1644041457554,0.47920209,41578.0,41577.0,0.00078098]
[1644041457755,0.62920209,41578.0,41577.0,0.00078098]
[1644041458253,0.88633166,41578.0,41577.0,0.00078098]
[1644041458454,0.88633166,41578.0,41572.0,0.00020392]
[1644041458658,0.04993509,41573.0,41571.0,0.02]
[1644041458853,0.0482,41572.0,41571.0,0.02020392]
[1644041459501,0.0482,41572.0,41571.0,0.01020392]
[1644041459709,0.0482,41572.0,41571.0,0.01]
[1644041463763,0.0482,41572.0,41571.0,0.24942783]
[1644041463963,0.04993509,41573.0,41571.0,0.24942783]
[1644041464760,0.04993509,41573.0,41571.0,0.48963175]
[1644041465363,0.04993509,41573.0,41571.0,0.54976275]
[1644041465761,0.04993509,41573.0,41571.0,0.54955883]
[1644041465964,0.04993509,41573.0,41571.0,0.54976275]
[1644041467001,0.04993509,41573.0,41571.0,0.54955883]
[1644041467200,0.04993509,41573.0,41571.0,0.54976275]
[1644041467400,0.04993509,41573.0,41572.0,0.01939997]
[1644041467600,0.04993509,41573.0,41572.0,0.01960389]
[1644041469404,0.04993509,41573.0,41572.0,0.29094052]
[1644041469603,0.04993509,41573.0,41572.0,0.01960389]
[1644041471454,0.03590492,41573.0,41572.0,0.03369897]
[1644041471857,0.03590492,41580.0,41572.0,0.63896069]
[1644041472055,0.03590492,41580.0,41575.0,0.01409508]
[1644041472456,0.03590492,41580.0,41575.0,0.014299]
[1644041472655,0.0064082,41581.0,41575.0,0.014299]
[1644041472656,0.03590492,41576.0,41575.0,0.014299]
[1644041473056,0.03590492,41576.0,41575.0,0.01508413]
[1644041473456,0.03590492,41576.0,41575.0,0.01408413]
[1644041473657,0.0064082,41581.0,41579.0,0.06483059]
[1644041474105,0.0064082,41581.0,41579.0,0.06503451]
[1644041474499,0.03690492,41580.0,41579.0,0.06503451]
[1644041474703,0.03690492,41580.0,41579.0,0.30096788]
[1644041475802,0.03690492,41580.0,41579.0,0.06503451]
[1644041476202,0.03690492,41580.0,41579.0,0.06483059]
[1644041477000,0.03690492,41580.0,41578.0,0.00020392]
[1644041477201,0.03690492,41580.0,41579.0,0.01309508]
[1644041477858,0.03690492,41580.0,41579.0,0.013299]
[1644041478259,0.03690492,41580.0,41579.0,0.01309508]
[1644041478460,0.03758442,41580.0,41579.0,0.09876664]
[1644041478659,0.03758442,41580.0,41579.0,0.09897056]
[1644041479560,0.03758442,41580.0,41579.0,0.09876664]
[1644041479961,0.03758442,41580.0,41579.0,0.09897056]
[1644041480162,0.03758442,41580.0,41579.0,0.35594646]
[1644041480364,0.03758442,41580.0,41579.0,0.35574254]
[1644041480563,0.0006795,41580.0,41579.0,0.35574254]
[1644041480765,0.0006795,41580.0,41579.0,0.65520511]
[1644041480967,0.0006795,41580.0,41579.0,1.13759269]
[1644041481168,0.0006795,41580.0,41579.0,1.1310985]
[1644041481169,0.00027398,41580.0,41579.0,1.1310985]
[1644041481364,0.00027398,41580.0,41579.0,1.13130242]
[1644041481609,0.00027398,41580.0,41579.0,1.11820734]
[1644041481805,0.00027398,41580.0,41579.0,1.13130242]
[1644041483104,0.00027398,41580.0,41579.0,1.11820734]
[1644041483304,0.00027398,41580.0,41579.0,1.13130242]
[1644041483704,0.03764619,41593.0,41583.0,0.060102]
[1644041483906,0.03764619,41593.0,41592.0,0.27903398]
[1644041484105,0.05074127,41593.0,41590.0,0.23110853]
[1644041484306,0.05074127,41593.0,41590.0,0.21273535]
[1644041484805,0.05074127,41593.0,41590.0,0.41867695]
[1644041485206,0.05074127,41593.0,41591.0,0.07495857]
[1644041485453,0.05074127,41593.0,41592.0,0.060102]
[1644041486653,0.05074127,41593.0,41591.0,0.07495857]
[1644041489110,0.05,41593.0,41591.0,0.07495857]
[1644041489499,0.05,41593.0,41588.0,0.120203]
[1644041489704,0.05,41589.0,41585.0,0.12021]
[1644041489906,0.05,41589.0,41584.0,0.00331304]
[1644041490501,0.05,41586.0,41584.0,0.00331304]
[1644041490706,0.27258796,41585.0,41581.0,0.00020392]
[1644041490904,0.27258796,41585.0,41583.0,0.00082822]
[1644041490905,0.05,41584.0,41583.0,0.00082822]
[1644041491299,0.24315108,41584.0,41583.0,0.00082822]
[1644041491500,0.20724416,41584.0,41583.0,0.00082822]
[1644041491699,0.19315108,41584.0,41583.0,0.00082822]
[1644041491900,0.19315108,41584.0,41580.0,0.00020392]
[1644041491901,0.20724416,41584.0,41580.0,0.00020392]
[1644041492099,0.01409308,41581.0,41579.0,0.41331167]
[1644041492301,0.2250458,41581.0,41579.0,0.48104379]
[1644041492506,0.2250458,41581.0,41579.0,0.22386504]
[1644041492702,0.2250458,41581.0,41579.0,0.22406896]
[1644041493252,0.2250458,41581.0,41579.0,0.48124771]
[1644041493453,0.21095272,41581.0,41579.0,0.48124771]
[1644041493657,0.2250458,41581.0,41579.0,0.41351559]
[1644041493853,0.2250458,41581.0,41579.0,0.29328959]
[1644041494654,0.2250458,41581.0,41580.0,0.07711104]
[1644041494854,0.2250458,41581.0,41580.0,0.07731496]
[1644041495058,0.01409308,41581.0,41580.0,0.33449371]
[1644041495956,0.01409308,41581.0,41580.0,0.00020392]
[1644041496155,0.01409308,41581.0,41579.0,0.03590692]
[1644041496354,0.01409308,41581.0,41579.0,0.03611084]
[1644041496800,0.23159075,41580.0,41579.0,0.03611084]
[1644041497402,0.23159075,41580.0,41579.0,0.24190807]
[1644041498103,0.01409308,41581.0,41579.0,0.27611084]
[1644041498305,0.01409308,41581.0,41580.0,0.20577465]
[1644041498503,0.01409308,41581.0,41580.0,0.00020392]
[1644041498703,0.01409308,41581.0,41579.0,0.48188549]
[1644041499104,0.01409308,41581.0,41580.0,0.20577465]
[1644041499304,0.01409308,41581.0,41580.0,0.20597857]
[1644041499703,0.01409308,41581.0,41580.0,0.00020392]
[1644041499903,0.01409308,41581.0,41579.0,0.48188549]
[1644041500356,0.01409308,41581.0,41579.0,0.27611084]
[1644041500557,0.01409308,41581.0,41579.0,0.48188549]
[1644041500955,0.01409308,41581.0,41579.0,0.27611084]
[1644041501355,0.01409308,41581.0,41579.0,0.48188549]
[1644041502661,0.01409308,41581.0,41580.0,0.20577465]
[1644041502858,0.01409308,41581.0,41580.0,0.20597857]
[1644041503058,0.01409308,41581.0,41580.0,0.24188549]
[1644041503258,0.01409308,41581.0,41580.0,0.20597857]
[1644041504502,0.01409308,41581.0,41580.0,0.00020392]
[1644041504705,0.01409308,41581.0,41579.0,0.27611084]
[1644041507406,0.01409308,41581.0,41579.0,0.53328959]
[1644041508265,0.01409308,41581.0,41580.0,0.03590692]
[1644041508667,0.22527021,41589.0,41580.0,0.91254397]
[1644041508668,0.16515296,41589.0,41580.0,0.91254397]
[1644041508872,0.49621996,41589.0,41583.0,0.29320575]
[1644041509068,0.01409308,41590.0,41584.0,0.5287962]
[1644041509468,0.01409308,41590.0,41585.0,0.25729883]
[1644041509669,0.01409308,41590.0,41586.0,0.23555069]
[1644041509968,0.01409308,41590.0,41586.0,0.49284952]
[1644041510172,0.01409308,41590.0,41587.0,0.22726256]
[1644041510477,0.16515296,41593.0,41587.0,0.22726256]
[1644041510478,0.01409308,41593.0,41590.0,0.331067]
[1644041510670,0.01409308,41593.0,41592.0,0.03590692]
[1644041510869,0.01409308,41593.0,41592.0,0.15320892]
[1644041511271,0.01409308,41593.0,41592.0,0.117302]
[1644041511469,0.01030129,41593.0,41592.0,0.117302]
[1644041511903,0.01030129,41593.0,41592.0,0.177393]
[1644041512903,0.0003483,41600.0,41592.0,0.177393]
[1644041513111,0.00640419,41601.0,41595.0,0.06009]
[1644041513308,0.01030129,41596.0,41595.0,0.06009]
[1644041513904,0.0003483,41599.0,41595.0,0.09978871]
[1644041514106,0.01030129,41596.0,41595.0,0.06009]
[1644041514306,0.0003483,41599.0,41595.0,0.27162758]
[1644041514606,0.21688129,41600.0,41595.0,0.27162758]
[1644041514806,0.21688129,41600.0,41597.0,0.060091]
[1644041515007,0.04502051,41596.0,41595.0,0.21236565]
[1644041515452,0.0553218,41596.0,41595.0,0.12100807]
[1644041515851,0.04502051,41596.0,41595.0,0.12100807]
[1644041516052,0.04502051,41596.0,41595.0,0.12018]
[1644041517254,0.0553218,41596.0,41595.0,0.12018]
[1644041517454,0.0553218,41596.0,41595.0,0.36384388]
[1644041517654,0.04502051,41596.0,41595.0,0.36384388]
[1644041518755,0.0553218,41596.0,41595.0,0.36384388]
[1644041518954,0.04502051,41596.0,41595.0,0.36384388]
[1644041520408,0.04502051,41596.0,41595.0,0.60384388]
[1644041521409,0.04502051,41596.0,41595.0,0.88833421]
[1644041521609,0.04502051,41596.0,41595.0,1.21940121]
[1644041523658,0.04502051,41596.0,41595.0,0.88833421]
[1644041525756,0.04502051,41596.0,41595.0,1.21940121]
[1644041526908,0.04502051,41596.0,41595.0,1.42509651]
[1644041527105,0.04502051,41596.0,41595.0,1.21940121]
[1644041529407,0.04502051,41596.0,41595.0,0.93491088]
[1644041532556,0.04502051,41596.0,41595.0,0.60384388]
[1644041536105,0.04502051,41596.0,41595.0,0.93491088]
[1644041536705,0.04502051,41596.0,41595.0,1.2186828]
[1644041537406,0.04502051,41596.0,41595.0,0.93491088]
[1644041539060,0.04495521,41596.0,41595.0,0.93491088]
[1644041540257,0.04495521,41596.0,41595.0,1.21293941]
[1644041540458,0.04495521,41596.0,41595.0,0.93491088]
[1644041542805,0.04495521,41596.0,41595.0,1.30926571]
[1644041543006,0.04495521,41596.0,41595.0,1.34896442]
[1644041543606,0.04495521,41596.0,41595.0,1.30926571]
[1644041543805,0.04495521,41596.0,41595.0,1.34896442]
[1644041544209,0.04495521,41596.0,41595.0,1.60627034]
[1644041544908,0.04495521,41596.0,41595.0,1.07460959]
[1644041545757,0.04495521,41596.0,41595.0,1.33191551]
[1644041545958,0.04495521,41596.0,41595.0,1.07460959]
[1644041546157,0.04495521,41596.0,41595.0,1.3317463]
[1644041546359,0.04495521,41596.0,41595.0,1.07460959]
[1644041546763,0.04495521,41596.0,41595.0,1.3553689]
[1644041546960,0.04495521,41596.0,41595.0,1.61253924]
[1644041547260,0.04495521,41596.0,41595.0,1.38177993]
[1644041547460,0.04495521,41596.0,41595.0,1.17460959]
[1644041547661,0.04495521,41596.0,41595.0,1.43177891]
[1644041547863,0.04495521,41596.0,41595.0,1.17460959]
[1644041548461,0.04495521,41596.0,41595.0,0.93491088]
[1644041548664,0.04495521,41596.0,41595.0,0.691247]
[1644041548665,0.0552565,41596.0,41595.0,0.691247]
[1644041548862,0.0552565,41596.0,41595.0,0.24]
[1644041549711,0.0552565,41596.0,41595.0,0.27969871]
[1644041549911,0.04495521,41596.0,41595.0,0.27969871]
[1644041550113,0.0552565,41596.0,41595.0,0.86798506]
[1644041550308,0.0552565,41596.0,41595.0,0.82828635]
[1644041550508,0.0552565,41596.0,41595.0,0.86798506]
[1644041550908,0.0552565,41596.0,41595.0,0.82828635]
[1644041551509,0.0552565,41596.0,41595.0,0.86798506]
[1644041552310,0.0552565,41596.0,41595.0,0.61076571]
[1644041552509,0.0552565,41596.0,41595.0,0.571067]
[1644041552709,0.0552565,41596.0,41595.0,0.61076571]
[1644041555964,0.0552565,41596.0,41595.0,0.571067]
[1644041557018,0.0552565,41596.0,41595.0,0.61076571]
[1644041557227,0.0552565,41596.0,41595.0,1.23044296]
[1644041557419,0.0552565,41596.0,41595.0,0.87004516]
[1644041557420,0.04495521,41596.0,41595.0,0.87004516]
[1644041557619,0.04495521,41596.0,41595.0,1.26581075]
[1644041558019,0.04495521,41596.0,41595.0,0.97004516]
[1644041559222,0.04495521,41596.0,41595.0,1.0301238]
[1644041560022,0.04495521,41596.0,41595.0,0.97004516]
[1644041560460,0.04495521,41596.0,41595.0,1.35365531]
[1644041560659,0.04495521,41596.0,41595.0,1.01824516]
[1644041561260,0.04495521,41596.0,41595.0,1.31231063]
[1644041562469,0.04495521,41596.0,41595.0,1.01824516]
[1644041562862,0.04489162,41596.0,41595.0,1.01824516]
[1644041565214,0.04489162,41596.0,41595.0,1.01324516]
[1644041565816,0.04434092,41596.0,41595.0,1.01324516]
[1644041566716,0.04434092,41596.0,41595.0,1.11324516]
[1644041567120,0.04434092,41596.0,41595.0,1.40855766]
[1644041568462,0.04434092,41596.0,41595.0,1.35855766]
[1644041568663,0.04434092,41596.0,41595.0,1.40855766]
[1644041571913,0.04434092,41596.0,41595.0,1.11324516]
[1644041572410,0.04434092,41596.0,41595.0,1.38242266]
[1644041574812,0.04434092,41596.0,41595.0,1.11324516]
[1644041575865,0.04434092,41596.0,41595.0,0.87824516]
[1644041576868,0.04434092,41596.0,41595.0,0.83004516]
[1644041579316,0.05464221,41596.0,41595.0,0.83004516]
[1644041579619,0.04434092,41596.0,41595.0,0.83004516]
[1644041580216,0.02276096,41596.0,41595.0,0.73004516]
[1644041581219,0.01245967,41596.0,41595.0,0.73004516]
[1644041582965,0.01245967,41596.0,41595.0,1.2188328]
[1644041583170,0.01245967,41596.0,41595.0,0.99676477]
[1644041585166,0.01245967,41596.0,41595.0,1.26803128]
[1644041586622,0.01245967,41596.0,41595.0,1.49803128]
[1644041591668,0.01245967,41596.0,41595.0,1.45833257]
[1644041591868,0.01245967,41596.0,41595.0,1.49803128]
[1644041592269,0.01245967,41596.0,41595.0,1.18706606]
[1644041592469,0.01245967,41596.0,41595.0,1.22676477]
[1644041593169,0.01245967,41596.0,41595.0,0.86854645]
[1644041593373,0.01245967,41596.0,41595.0,0.48927945]
[1644041593575,0.01245967,41596.0,41595.0,0.84931874]
[1644041593868,0.01245967,41596.0,41595.0,0.23]
[1644041594119,0.01245967,41596.0,41595.0,0.53865688]
[1644041594314,0.01245967,41596.0,41595.0,0.53865982]
[1644041594516,0.01245967,41596.0,41595.0,0.53867117]
[1644041595121,0.01245967,41596.0,41595.0,0.23]
[1644041595320,0.01245967,41596.0,41595.0,0.48730776]
[1644041595919,0.01245967,41596.0,41595.0,0.23]
[1644041596123,0.01245967,41596.0,41595.0,0.43588836]
[1644041596319,0.07897045,41596.0,41595.0,0.23]
[1644041597221,0.01886594,41596.0,41595.0,0.23]
[1644041597620,0.01886594,41596.0,41595.0,0.48730776]
[1644041597621,0.27476606,41596.0,41595.0,0.48730776]
[1644041597863,0.01886594,41596.0,41595.0,0.48730776]
[1644041598067,0.01886594,41596.0,41595.0,0.23]
[1644041598265,0.01886594,41596.0,41595.0,0.48730776]
[1644041598768,0.0532416,41596.0,41595.0,0.48730776]
[1644041599164,0.0532416,41596.0,41595.0,0.23]
[1644041601713,0.01886594,41596.0,41595.0,0.22932]
[1644041602116,0.01886594,41596.0,41595.0,0.86915631]
[1644041602117,0.01245967,41596.0,41595.0,0.86915631]
[1644041602316,0.01245967,41596.0,41595.0,1.26093277]
[1644041602516,0.01245967,41596.0,41595.0,1.04059219]
[1644041602715,0.01245967,41596.0,41595.0,1.00089348]
[1644041603113,0.01245967,41596.0,41595.0,1.07715389]
[1644041604413,0.01245967,41596.0,41595.0,1.1168526]
[1644041604612,0.01245967,41596.0,41595.0,1.39627659]
[1644041604814,0.01245967,41596.0,41595.0,1.1168526]
[1644041605665,0.01030129,41598.0,41595.0,1.39027847]
[1644041605865,0.01030129,41598.0,41597.0,0.06008]
[1644041606067,0.01030129,41598.0,41597.0,1.0483751]
[1644041606267,0.01030129,41598.0,41597.0,0.77133519]
[1644041606672,0.01030129,41598.0,41597.0,0.98531632]
[1644041609618,0.01030129,41598.0,41597.0,0.98511632]
[1644041609818,0.01030129,41598.0,41597.0,0.94541761]
[1644041610018,0.01030129,41598.0,41597.0,0.98511632]
[1644041611620,0.00034563,41605.0,41597.0,0.98703788]
[1644041611826,0.35958072,41608.0,41603.0,0.31703996]
[1644041612021,0.12167074,41608.0,41606.0,0.20555569]
[1644041612222,0.00837973,41607.0,41606.0,0.20555569]
[1644041619214,0.00837973,41607.0,41605.0,0.060084]
[1644041619414,0.00837973,41607.0,41606.0,0.23]
[1644041620967,0.00837973,41607.0,41606.0,0.50646048]
[1644041621165,0.00837973,41607.0,41606.0,1.14587103]
[1644041621365,0.00837973,41607.0,41606.0,0.83752748]
[1644041621965,0.00837973,41607.0,41606.0,1.14587103]
[1644041622269,0.00837973,41607.0,41606.0,0.86931915]
[1644041622465,0.00837973,41607.0,41606.0,0.561067]
[1644041622864,0.00837973,41607.0,41606.0,0.86931915]
[1644041623265,0.00837973,41607.0,41606.0,0.561067]
[1644041623666,0.00837973,41607.0,41606.0,0.86931915]
[1644041624525,0.00837973,41607.0,41606.0,0.561067]
[1644041625315,0.00837973,41607.0,41606.0,0.86920575]
[1644041625716,0.00837973,41607.0,41606.0,0.561067]
[1644041625918,0.00837973,41607.0,41606.0,0.48682941]
[1644041626216,0.00837973,41607.0,41606.0,0.23]
[1644041631714,0.00837973,41607.0,41606.0,0.48682941]
[1644041631913,0.00021162,41607.0,41606.0,0.48682941]
[1644041632114,0.00021162,41607.0,41606.0,0.81789641]
[1644041632313,0.00021162,41607.0,41606.0,0.96768479]
[1644041632514,0.00021162,41607.0,41606.0,0.98732943]
[1644041632914,0.00021162,41607.0,41606.0,1.24569833]
[1644041635563,0.00021162,41607.0,41606.0,0.83754105]
[1644041635764,0.00021162,41607.0,41606.0,1.19543883]
[1644041635964,0.00021162,41607.0,41606.0,0.88732943]
[1644041636567,0.00255154,41617.0,41609.0,0.060068]
[1644041636772,0.00255154,41617.0,41615.0,0.25663097]
[1644041636966,0.342752,41623.0,41616.0,0.379179]
[1644041637167,0.042752,41623.0,41619.0,0.2565713]
[1644041637367,0.042752,41623.0,41620.0,0.32231103]
[1644041637566,0.042752,41623.0,41621.0,0.20524403]
[1644041637767,0.042752,41623.0,41621.0,0.330933]
[1644041638769,0.042752,41623.0,41621.0,0.6038081]
[1644041641420,0.042752,41623.0,41622.0,0.75]
[1644041641624,0.00182327,41624.0,41622.0,1.22842865]
[1644041641820,0.001,41624.0,41623.0,0.60456403]
[1644041642018,0.001,41640.0,41624.0,0.45]
[1644041642218,0.001,41640.0,41626.0,0.060036]
[1644041642419,0.001,41640.0,41638.0,0.08606862]
[1644041642620,0.001,41640.0,41638.0,0.28467568]
[1644041642621,0.331067,41639.0,41638.0,0.28467568]
[1644041642865,0.001,41640.0,41638.0,0.28467568]
[1644041643366,0.001,41640.0,41638.0,0.34470668]
[1644041643664,0.2167385,41647.0,41639.0,0.060029]
[1644041643867,0.22006667,41649.0,41641.0,0.060028]